bitfinex/quotes_ETHUSD_20251119
["timestamp","ask_amount","ask_price","bid_price","bid_amount"]
[1763563025911,1.17429639,3060.6,3058.6,0.6726]
[1763563026110,0.405504,3060.5,3058.6,0.6726]
[1763563026341,0.51313456,3060.7,3058.7,0.4789]
[1763563026542,0.51313456,3060.7,3058.7,1.38589264]
[1763563027039,0.4504,3060.6,3058.8,0.4789]
[1763563027246,0.43833132,3060.5,3058.8,0.4789]
[1763563027430,0.405504,3060.5,3058.6,0.1937]
[1763563027629,0.405504,3060.5,3058.6,0.6512]
[1763563027630,0.405504,3060.3,3058.6,0.6512]
[1763563027833,0.03282732,3060.2,3058.6,0.6512]
[1763563028112,0.4927,3060.2,3058.6,0.6512]
[1763563028308,0.03282732,3060.1,3058.6,0.6512]
[1763563028524,1.31249664,3060.0,3058.4,0.001]
[1763563028756,0.405504,3059.8,3058.4,0.001]
[1763563029111,1.31249664,3059.4,3058.4,0.001]
[1763563029314,0.574004,3058.5,3058.4,0.001]
[1763563029548,0.574004,3058.5,3056.8,0.001]
[1763563029549,1.31249664,3058.4,3056.8,0.001]
[1763563029740,0.560804,3057.4,3056.8,0.001]
[1763563030215,0.405504,3057.2,3056.8,0.001]
[1763563030411,1.31249664,3057.2,3056.8,0.001]
[1763563030610,0.405504,3057.0,3056.8,0.001]
[1763563030817,0.405504,3057.0,3056.1,0.001]
[1763563030818,1.09479984,3057.0,3056.1,0.001]
[1763563031040,1.31249664,3056.5,3056.1,0.001]
[1763563031239,1.31249664,3056.5,3053.6,0.4575]
[1763563031444,1.31249664,3055.5,3053.6,0.4575]
[1763563031748,0.405504,3055.3,3053.4,0.189]
[1763563031950,0.405504,3056.3,3054.5,0.6465]
[1763563032171,1.31249664,3056.3,3054.5,0.6465]
[1763563032347,0.405504,3056.1,3054.5,0.6465]
[1763563032672,0.4927,3056.2,3053.7,0.4575]
[1763563032673,1.31249664,3055.7,3053.7,0.4575]
[1763563032885,1.31249664,3055.1,3053.4,0.189]
[1763563033041,1.31249664,3055.1,3053.0,0.4575]
[1763563033240,1.31249664,3054.5,3052.1,0.4575]
[1763563033549,1.31249664,3054.5,3052.6,0.189]
[1763563033747,1.80519664,3054.5,3052.6,0.6465]
[1763563033949,0.405504,3054.3,3052.7,0.03275788]
[1763563034149,0.405504,3054.3,3052.7,0.4575]
[1763563034550,0.405504,3054.3,3050.8,0.306]
[1763563034551,1.31249664,3053.9,3052.3,0.4575]
[1763563034750,1.31249664,3053.9,3051.7,0.4575]
[1763563034951,0.405504,3053.7,3051.7,0.4575]
[1763563035154,1.31249664,3053.3,3051.7,0.4575]
[1763563035375,0.405504,3053.1,3051.5,0.189]
[1763563035575,0.70139851,3053.2,3051.6,0.4575]
[1763563035828,0.405504,3053.5,3051.6,1.36449264]
[1763563035992,0.405504,3053.5,3051.6,0.90699264]
[1763563036199,0.405504,3053.7,3051.7,0.4575]
[1763563036355,0.90699264,3053.9,3051.5,0.189]
[1763563036356,1.31249664,3053.3,3051.5,0.189]
[1763563036551,0.405504,3052.7,3051.1,0.4575]
[1763563036773,0.405504,3052.5,3051.1,0.4575]
[1763563037169,0.61069924,3052.6,3051.1,0.4575]
[1763563037500,0.405504,3052.5,3051.1,0.4575]
[1763563037791,0.4927,3053.5,3051.2,0.93976663]
[1763563037959,0.1619,3053.8,3051.3,0.405504]
[1763563038163,0.1619,3053.8,3051.3,0.863004]
[1763563038455,0.51414096,3054.0,3051.5,0.405504]
[1763563038660,0.1533,3055.0,3052.0,1.31249664]
[1763563038900,0.4927,3055.3,3052.0,1.31249664]
[1763563039120,1.13661626,3057.3,3052.0,1.31249664]
[1763563039121,0.4927,3056.8,3053.2,0.405504]
[1763563039258,5.70148841,3057.8,3055.2,3.4620686]
[1763563039462,0.4927,3057.7,3055.4,0.405504]
[1763563039658,0.4927,3058.3,3055.4,0.405504]
[1763563039925,0.1619,3058.5,3055.6,1.31249664]
[1763563040220,0.03282732,3058.4,3055.8,0.405504]
[1763563040361,0.03282732,3059.1,3056.2,1.31249664]
[1763563040559,0.4927,3059.6,3056.4,0.405504]
[1763563040868,0.03282732,3059.5,3056.4,0.405504]
[1763563041071,0.1525,3060.0,3056.7,5.70148841]
[1763563041274,0.1525,3060.0,3056.5,0.4575]
[1763563041275,0.4927,3060.4,3057.5,6.5412919]
[1763563041508,0.1619,3061.5,3057.0,0.90699264]
[1763563041509,0.90699264,3060.0,3057.0,0.90699264]
[1763563041799,5.70148841,3060.1,3057.1,0.863004]
[1763563041997,0.51319077,3059.3,3057.1,0.863004]
[1763563042301,0.4927,3060.9,3057.7,0.405504]
[1763563042503,0.51307176,3058.8,3058.2,1.31249664]
[1763563042661,0.51307176,3058.8,3058.7,1.31249664]
[1763563042862,0.002,3059.5,3058.8,0.4575]
[1763563043056,0.1619,3061.5,3058.9,0.405504]
[1763563043284,0.4927,3061.4,3058.8,0.4575]
[1763563043509,0.002,3059.8,3058.9,0.4575]
[1763563044012,0.002,3059.8,3059.0,0.405504]
[1763563044358,0.002,3059.8,3059.2,0.405504]
[1763563044596,5.70148841,3062.3,3059.1,0.4505]
[1763563044597,0.4818,3062.3,3059.5,1.31249664]
[1763563044810,0.6371,3063.0,3060.1,1.31249664]
[1763563045102,0.03282732,3062.9,3060.3,0.405504]
[1763563045309,0.4818,3062.9,3060.4,1.35749264]
[1763563045465,0.4818,3062.9,3060.4,0.4505]
[1763563045797,0.4818,3062.9,3060.5,0.4505]
[1763563045798,0.90699264,3062.5,3060.5,0.4505]
[1763563045982,0.78586895,3062.4,3060.5,0.4505]
[1763563046160,0.4818,3062.9,3060.6,0.405504]
[1763563046361,0.03282732,3062.8,3060.7,0.4505]
[1763563046565,0.4818,3062.9,3060.7,0.4505]
[1763563046763,0.03282732,3063.3,3060.8,0.405504]
[1763563047197,0.4818,3063.2,3060.9,0.4505]
[1763563047402,0.4818,3063.2,3061.0,1.31249664]
[1763563047631,0.03282732,3063.1,3061.1,0.50299438]
[1763563047829,1.42161996,3063.1,3060.5,0.4505]
[1763563047990,0.405504,3062.4,3059.9,0.4505]
[1763563048195,0.405504,3062.2,3060.0,0.90699264]
[1763563048505,0.51462732,3062.3,3059.9,3.71851931]
[1763563048506,0.90699264,3061.9,3059.9,0.4505]
[1763563048714,0.405504,3061.7,3059.7,0.1933]
[1763563048904,0.03282732,3061.6,3059.7,0.1933]
[1763563049104,0.82641935,3061.8,3059.8,0.4505]
[1763563049401,0.43833132,3062.0,3060.1,0.405504]
[1763563049825,0.03282732,3062.0,3060.1,0.856004]
[1763563050031,0.03282732,3062.3,3060.1,0.4505]
[1763563050201,0.03282732,3062.3,3060.2,0.4505]
[1763563050405,0.887304,3062.2,3060.2,0.4505]
[1763563050594,0.887304,3062.2,3059.9,0.4505]
[1763563050595,0.405504,3062.0,3059.9,0.4505]
[1763563050912,0.405504,3061.8,3059.9,0.4505]
[1763563051115,0.405504,3062.0,3059.9,0.84170635]
[1763563051292,0.43833132,3062.0,3060.0,0.405504]
[1763563051498,0.43833132,3062.0,3060.2,0.90699264]
[1763563051695,0.92013132,3062.0,3060.0,0.4505]
[1763563051908,0.887304,3062.0,3060.1,0.4505]
[1763563052512,0.51462732,3061.9,3060.1,0.4505]
[1763563053029,0.405504,3062.4,3060.2,0.405504]
[1763563053231,0.4818,3062.8,3060.2,0.405504]
[1763563053394,1.48100462,3064.8,3060.6,1.31249664]
[1763563053395,0.4818,3063.5,3060.6,1.31249664]
[1763563053590,0.4818,3063.3,3060.8,0.405504]
[1763563053794,0.03282732,3063.2,3059.7,0.1933]
[1763563054035,0.405504,3063.2,3060.1,0.4505]
[1763563054208,0.1619,3063.4,3060.2,0.90699264]
[1763563054529,0.483,3063.7,3060.8,1.31249664]
[1763563054826,0.483,3063.7,3061.0,0.405504]
[1763563055230,0.483,3063.7,3061.2,0.405504]
[1763563055595,0.0012,3063.7,3061.4,1.31249664]
[1763563056036,0.0012,3063.7,3061.6,0.405504]
[1763563056197,0.0012,3063.7,3061.8,0.405504]
[1763563056394,0.0012,3063.7,3062.0,0.405504]
[1763563056596,0.0012,3063.7,3061.4,0.90699264]
[1763563056597,0.4818,3063.6,3061.8,0.4505]
[1763563056847,0.4818,3063.6,3061.3,6.93867618]
[1763563056848,0.405504,3063.4,3061.3,0.405504]
[1763563056997,0.405504,3062.9,3060.4,0.1933]
[1763563057199,0.405504,3062.7,3059.7,0.6438]
[1763563057401,0.405504,3062.7,3059.8,0.4505]
[1763563057610,0.405504,3062.5,3059.8,0.4505]
[1763563057959,0.405504,3061.7,3059.9,0.4831]
[1763563058135,0.84256036,3062.4,3059.9,0.4831]
[1763563058136,0.405504,3062.3,3059.9,0.4831]
[1763563058314,0.4671,3062.4,3059.9,0.4831]
[1763563058315,0.03282732,3062.2,3059.9,0.4831]
[1763563058633,0.405504,3062.1,3059.9,0.4831]
[1763563058859,0.4671,3062.2,3059.9,0.4831]
[1763563059133,0.4671,3062.2,3060.0,0.405504]
[1763563059746,0.405504,3062.5,3060.2,1.31249664]
[1763563059928,0.405504,3062.3,3060.1,0.4831]
[1763563060100,0.405504,3061.6,3059.3,0.1117]
[1763563060299,0.405504,3061.4,3058.9,0.4831]
[1763563060597,1.31249664,3061.0,3059.8,0.001]
[1763563060797,1.31249664,3060.4,3059.8,0.001]
[1763563060997,0.597004,3059.9,3059.8,0.001]
[1763563061224,0.597004,3059.9,3059.4,0.001]
[1763563061225,0.405504,3059.8,3059.4,0.001]
[1763563061429,0.4671,3060.4,3059.4,0.001]
[1763563061610,0.405504,3060.2,3059.4,0.001]
[1763563062036,0.405504,3060.0,3059.4,0.001]
[1763563062551,0.6586,3060.6,3059.4,0.001]
[1763563062710,0.405504,3060.5,3059.4,0.001]
[1763563062911,0.872604,3060.5,3059.4,0.001]
[1763563063117,1.064104,3061.1,3059.4,0.001]
[1763563063358,0.4671,3061.7,3059.5,0.4831]
[1763563063654,0.03282732,3061.6,3059.4,0.001]
[1763563063856,1.31169664,3061.3,3059.4,0.001]
[1763563064015,1.29343935,3061.2,3059.4,0.001]
[1763563064211,0.49992732,3061.1,3059.4,0.001]
[1763563064550,0.4671,3061.1,3059.4,3.2695972]
[1763563064725,0.4671,3061.1,3059.4,0.4841]
[1763563064932,0.4671,3061.1,3059.4,0.001]
[1763563065414,0.03282732,3061.0,3059.4,0.001]
[1763563065851,0.405504,3060.8,3059.4,0.001]
[1763563066353,0.405504,3060.6,3059.4,0.001]
[1763563066758,0.597004,3059.5,3059.4,0.001]
[1763563066955,0.405504,3059.4,3059.1,0.001]
[1763563067161,0.872604,3059.4,3059.1,0.001]
[1763563067536,0.4671,3059.3,3059.1,0.001]
[1763563067739,0.405504,3059.2,3057.2,0.4831]
[1763563068221,0.405504,3059.0,3057.2,0.4831]
[1763563068427,0.405504,3059.0,3056.8,0.90699264]
[1763563068725,0.405504,3058.8,3056.9,0.48505946]
[1763563069126,0.1915,3059.5,3057.0,0.4831]
[1763563069365,0.872604,3059.4,3057.1,0.03271073]
[1763563069537,0.872604,3059.4,3057.2,0.90699264]
[1763563069751,0.405504,3059.2,3057.2,0.4831]
[1763563069967,0.405504,3059.2,3056.9,0.48505946]
[1763563070166,0.4671,3059.1,3057.0,0.4831]
[1763563070540,0.405504,3059.0,3057.0,0.4831]
[1763563070873,0.4671,3058.9,3057.0,0.4831]
[1763563071240,0.405504,3059.3,3057.1,0.405504]
[1763563071439,0.4671,3059.2,3057.1,0.405504]
[1763563071640,0.405504,3059.1,3057.2,0.4831]
[1763563071839,0.405504,3059.1,3056.7,0.189]
[1763563072076,0.4671,3059.0,3056.8,3.75449492]
[1763563072286,0.4671,3059.0,3056.9,0.39434949]
[1763563072484,0.405504,3058.9,3056.9,0.87744949]
[1763563072689,0.405504,3058.9,3056.9,0.4831]
[1763563072896,0.90699264,3059.2,3053.1,1.49369408]
[1763563072897,0.405504,3058.5,3056.1,0.4831]
[1763563073187,0.405504,3058.5,3056.1,1.39009264]
[1763563073417,0.405504,3058.3,3056.2,0.81278952]
[1763563073902,0.405504,3058.1,3057.2,0.25]
[1763563074101,0.405504,3057.9,3057.2,0.25]
[1763563074604,0.405504,3057.7,3057.2,0.25]
[1763563074956,0.405504,3057.5,3057.2,0.25]
[1763563075152,0.405504,3057.3,3057.2,0.25]
[1763563075354,6.95169688,3058.1,3057.2,0.25]
[1763563075592,0.405504,3057.9,3057.2,0.25]
[1763563076063,0.405504,3057.7,3057.2,0.25]
[1763563076265,0.4671,3057.6,3057.2,0.25]
[1763563076466,0.405504,3057.5,3057.2,0.25]
[1763563076879,0.405504,3057.3,3057.2,0.25]
[1763563077300,0.872604,3057.3,3057.2,0.25]
[1763563077810,0.872604,3057.3,3057.2,0.1646]
[1763563078113,1.74573335,3057.3,3057.2,0.1646]
[1763563080174,0.4671,3057.3,3057.2,0.1646]
[1763563080374,0.4671,3058.5,3057.2,0.1646]
[1763563080684,0.49992732,3058.3,3057.2,0.1646]
[1763563080886,0.90699264,3057.8,3057.2,0.1646]
[1763563081089,0.4671,3058.3,3057.2,0.1646]
[1763563081291,0.1915,3058.4,3057.2,0.1646]
[1763563081504,0.4671,3058.7,3057.2,0.1646]
[1763563081682,0.03282732,3058.6,3057.2,0.1646]
[1763563082009,0.405504,3059.0,3057.2,0.1646]
[1763563082175,0.872604,3059.1,3057.2,0.1646]
[1763563082375,0.405504,3058.8,3057.2,0.1646]
[1763563082579,0.002,3059.2,3057.3,0.4831]
[1763563082794,0.002,3059.2,3057.4,0.405504]
[1763563082977,0.002,3059.2,3057.5,0.4831]
[1763563083516,0.002,3059.2,3057.6,0.405504]
[1763563083730,0.002,3059.2,3057.5,0.4831]
[1763563083873,6.95169688,3058.8,3057.2,0.1646]
[1763563084074,0.405504,3058.1,3057.2,0.1646]
[1763563084374,0.90699264,3058.6,3057.2,0.1646]
[1763563084574,0.4671,3058.5,3057.2,0.1646]
[1763563084785,0.43833132,3058.4,3057.2,0.1646]
[1763563084985,0.4671,3058.3,3057.2,0.1646]
[1763563085212,0.03282732,3058.4,3057.2,0.1646]
[1763563085520,0.002,3059.2,3057.3,0.4831]
[1763563085721,0.49992732,3059.1,3057.2,0.1646]
[1763563085926,0.43833132,3059.0,3057.2,0.1646]
[1763563086122,1.31249664,3058.4,3057.2,0.1646]
[1763563086426,0.405504,3058.2,3057.2,0.1646]
[1763563086653,0.405504,3058.0,3057.2,0.1646]
[1763563087090,1.13861626,3059.2,3057.3,0.4831]
[1763563087091,0.4671,3059.1,3057.3,0.4831]
[1763563087533,0.4671,3059.1,3057.2,0.1646]
[1763563087534,0.03282732,3059.0,3057.2,0.1646]
[1763563087909,0.885404,3058.9,3057.2,0.1646]
[1763563088099,0.43833132,3058.8,3057.2,0.1646]
[1763563088301,0.03282732,3058.8,3057.2,0.1646]
[1763563088595,0.405504,3058.6,3057.2,0.1646]
[1763563088799,0.4799,3058.3,3057.2,0.1646]
[1763563089298,0.03282732,3058.2,3057.2,0.1646]
[1763563089504,0.69134414,3058.6,3057.2,0.1646]
[1763563089700,0.03282732,3058.5,3057.2,0.1646]
[1763563089919,0.4799,3059.0,3057.2,0.1646]
[1763563090199,0.03282732,3058.9,3057.2,0.625]
[1763563090594,0.4799,3058.9,3057.3,0.4604]
[1763563090799,6.95169688,3058.3,3057.2,0.1646]
[1763563091047,0.84801497,3058.4,3057.2,0.1646]
[1763563091048,0.77997119,3058.2,3057.2,0.1646]
[1763563091250,0.405504,3058.1,3057.2,0.1646]
[1763563091429,0.405504,3057.9,3057.2,0.1646]
[1763563091753,0.03282732,3057.8,3057.2,0.1646]
[1763563091930,0.4799,3059.3,3057.3,0.4604]
[1763563092257,0.03282732,3059.1,3057.3,0.4604]
[1763563092468,2.16051161,3058.6,3057.2,0.1646]
[1763563092771,1.31249664,3058.0,3057.2,0.1646]
[1763563092920,2.85280367,3058.0,3057.2,0.1646]
[1763563093116,3.33270367,3057.9,3057.2,0.1646]
[1763563093318,0.405504,3057.7,3057.2,0.1646]
[1763563093520,1.09779606,3057.7,3057.2,0.1646]
[1763563093734,0.405504,3058.3,3057.2,0.1646]
[1763563094016,0.51272732,3058.2,3057.2,0.1646]
[1763563094223,0.91122085,3058.5,3057.2,0.1646]
[1763563094516,1.13661626,3059.0,3057.2,0.1646]
[1763563094517,0.4799,3059.0,3057.2,0.625]
[1763563094731,0.002,3059.2,3057.4,0.405504]
[1763563094939,0.002,3059.2,3057.3,0.4604]
[1763563095118,0.002,3059.2,3057.4,0.4604]
[1763563095747,0.002,3059.2,3057.6,1.31249664]
[1763563096071,0.002,3059.6,3059.1,0.1837]
[1763563096289,0.002,3059.9,3059.2,0.4604]
[1763563096447,0.002,3059.9,3059.3,0.405504]
[1763563096779,0.03282732,3061.5,3059.3,0.405504]
[1763563097093,0.69450338,3061.8,3059.5,0.405504]
[1763563097094,0.4799,3061.8,3059.5,0.405504]
[1763563097382,0.03282732,3061.8,3059.5,0.405504]
[1763563097587,1.600175,3062.2,3059.6,0.4604]
[1763563097755,0.002,3059.8,3059.6,0.4604]
[1763563098376,0.002,3059.8,3059.1,0.1837]
[1763563098978,0.002,3059.8,3059.2,0.4604]
[1763563099464,0.002,3059.8,3058.7,0.1921]
[1763563099848,6.95169688,3060.9,3058.7,0.1921]
[1763563099849,0.84801497,3061.8,3058.8,13.53742364]
[1763563100035,0.69189918,3061.9,3059.2,1.31249664]
[1763563100232,0.03282732,3062.1,3059.2,1.31249664]
[1763563100573,0.90699264,3062.3,3059.3,0.4604]
[1763563100749,0.03282732,3062.2,3059.4,0.405504]
[1763563100943,0.03282732,3062.1,3059.4,0.405504]
[1763563101139,0.4799,3062.2,3059.6,0.405504]
[1763563101330,0.51272732,3062.1,3059.6,0.405504]
[1763563101530,0.51272732,3062.1,3059.7,0.4604]
[1763563101769,0.69010449,3062.7,3059.9,1.31249664]
[1763563101966,6.95169688,3062.3,3059.7,0.4604]
[1763563102155,0.90699264,3062.2,3059.7,0.4604]
[1763563102463,0.405504,3062.1,3059.7,0.4604]
[1763563102666,0.405504,3061.9,3059.7,0.4604]
[1763563102833,0.4799,3062.1,3057.1,0.001]
[1763563102834,0.405504,3061.0,3057.3,6.95169688]
[1763563103032,0.405504,3060.8,3057.1,0.001]
[1763563103238,0.405504,3059.7,3057.8,0.4604]
[1763563103611,0.405504,3059.7,3057.1,0.001]
[1763563103612,0.405504,3059.5,3057.5,0.4604]
[1763563103787,0.405504,3059.3,3057.5,0.4604]
[1763563103973,0.4799,3059.7,3057.5,0.4604]
[1763563103974,0.405504,3059.6,3057.5,0.4604]
[1763563104379,0.4977,3060.2,3057.6,0.03270538]
[1763563104702,0.03282732,3060.4,3057.7,0.405504]
[1763563104875,0.405504,3060.3,3057.7,0.904604]
[1763563105075,0.405504,3060.6,3057.8,0.4991]
[1763563105387,0.405504,3060.4,3057.9,0.405504]
[1763563105590,0.405504,3060.5,3058.0,9.81033354]
[1763563105806,0.90699264,3060.7,3058.1,2.33408039]
[1763563105807,0.03282732,3060.7,3058.1,2.33408039]
[1763563105965,0.6784,3061.3,3058.3,0.405504]
[1763563106166,0.53052732,3061.2,3058.3,0.405504]
[1763563106505,0.53052732,3061.2,3058.4,0.4991]
[1763563106805,1.31249664,3061.1,3058.5,0.405504]
[1763563106969,0.405504,3060.9,3058.5,0.405504]
[1763563107164,0.405504,3060.9,3058.1,1.92857639]
[1763563107165,0.405504,3060.9,3058.6,0.4991]
[1763563107400,0.405504,3060.7,3058.7,0.405504]
[1763563107706,0.4977,3060.9,3058.8,3.26925591]
[1763563107905,0.405504,3060.8,3058.9,0.4991]
[1763563108130,0.4977,3061.6,3059.0,1.43619077]
[1763563108313,0.4977,3061.2,3059.0,1.43619077]
[1763563108519,0.03282732,3061.1,3059.2,0.405504]
[1763563108833,0.03282732,3061.1,3059.1,0.4991]
[1763563108834,0.405504,3061.0,3059.1,0.4991]
[1763563109003,0.03282732,3060.9,3059.1,0.4991]
[1763563109539,1.40469264,3061.7,3059.2,0.506404]
[1763563109717,1.24224208,3061.6,3059.4,6.53722952]
[1763563109920,0.4977,3062.5,3059.5,1.31249664]
[1763563110221,0.03282732,3062.4,3059.6,0.405504]
[1763563110423,0.03282732,3062.4,3059.6,0.904604]
[1763563110931,0.4977,3062.3,3059.8,0.405504]
[1763563111241,0.405504,3062.0,3059.9,0.4991]
[1763563111544,0.405504,3062.0,3059.4,3.67411876]
[1763563111545,0.405504,3061.8,3059.4,0.4991]
[1763563111917,0.405504,3061.6,3059.4,0.4991]
[1763563112242,0.405504,3061.4,3058.1,1.02158375]
[1763563112537,1.31249664,3060.3,3058.1,0.4991]
[1763563112742,0.405504,3060.1,3058.1,0.4991]
[1763563113040,0.405504,3059.9,3058.1,0.4991]
[1763563113226,0.405504,3059.9,3057.7,0.4991]
[1763563113424,0.405504,3059.7,3057.7,0.4991]
[1763563113728,0.404704,3059.7,3057.7,0.4991]
[1763563114037,0.4977,3059.6,3057.4,0.1921]
[1763563114239,0.90699264,3059.0,3057.2,0.1646]
[1763563114634,0.4673044,3059.5,3057.2,0.1646]
[1763563114635,0.90699264,3058.4,3057.2,0.1646]
[1763563115241,0.90699264,3058.2,3057.2,0.1646]
[1763563115442,6.61944763,3058.2,3057.2,0.1646]
[1763563115643,0.1807,3057.3,3057.2,0.1646]
[1763563115942,0.586204,3057.3,3057.2,0.1646]
[1763563116141,1.083904,3057.3,3057.2,0.1646]
[1763563116300,1.28299366,3057.3,3057.2,0.1646]
[1763563116915,1.81019664,3057.2,3056.1,0.001]
[1763563117116,1.31249664,3056.8,3055.8,0.001]
[1763563117442,1.31249664,3055.5,3053.4,0.1997]
[1763563117627,6.11795899,3055.3,3053.4,0.1997]
[1763563117827,0.405504,3055.1,3053.6,0.4671]
[1763563118230,0.869904,3055.1,3053.4,0.1997]
[1763563118432,0.405504,3055.3,3053.8,0.4671]
[1763563118607,0.405504,3055.3,3053.4,0.1997]
[1763563118608,1.77689664,3055.1,3053.4,0.1997]
[1763563118810,2.5258318,3055.1,3053.4,0.1997]
[1763563119147,0.869904,3055.0,3052.1,0.1853]
[1763563119440,0.4644,3055.0,3052.1,0.1853]
[1763563119641,0.405504,3054.6,3052.2,0.4671]
[1763563119844,0.4644,3054.9,3052.2,0.4671]
[1763563119845,1.31249664,3054.0,3052.2,0.4671]
[1763563120341,0.6117959,3054.5,3052.2,7.01968708]
[1763563120540,0.405504,3054.4,3052.3,0.03276217]
[1763563120742,0.405504,3054.4,3052.3,0.90699264]
[1763563121047,0.405504,3054.4,3049.6,0.002]
[1763563121048,0.1974,3051.1,3049.6,0.002]
[1763563121250,6.11795899,3051.0,3049.6,0.002]
[1763563121548,1.31249664,3051.5,3050.1,0.4671]
[1763563121854,0.1974,3052.0,3050.1,0.4671]
[1763563122021,0.405504,3051.9,3050.1,0.4671]
[1763563122469,1.31249664,3051.5,3049.8,0.4671]
[1763563122792,0.90699264,3051.5,3050.3,0.4681]
[1763563122996,0.405504,3051.4,3050.3,0.4681]
[1763563123207,1.31249664,3050.9,3050.3,0.001]
[1763563123354,0.70249516,3050.8,3050.3,0.001]
[1763563123556,0.405504,3051.9,3050.3,0.001]
[1763563123874,1.31249664,3051.2,3050.3,0.001]
[1763563124052,7.02495163,3050.7,3050.3,0.001]
[1763563124251,0.90699264,3050.7,3050.3,0.001]
[1763563124496,1.31249664,3050.7,3050.3,0.001]
[1763563125061,7.48935163,3050.7,3050.3,0.001]
[1763563125301,1.31249664,3050.6,3050.3,0.001]
[1763563125597,1.31249664,3050.6,3046.4,0.1853]
[1763563125598,1.31249664,3049.6,3047.5,0.4671]
[1763563125903,1.31249664,3048.8,3047.5,0.4671]
[1763563126198,0.405504,3049.3,3047.5,0.4671]
[1763563126500,0.405504,3049.8,3047.5,3.74847817]
[1763563126793,1.10799916,3049.8,3047.6,0.84194782]
[1763563126954,1.10799916,3049.8,3047.6,0.4671]
[1763563127155,0.70249516,3049.8,3047.7,0.4671]
[1763563127355,0.90699264,3050.1,3047.8,0.405504]
[1763563127555,5.71245499,3050.4,3047.8,0.405504]
[1763563127773,5.71245499,3050.4,3048.2,0.405504]
[1763563127986,0.1974,3050.8,3048.2,0.405504]
[1763563127987,5.71245499,3050.8,3048.2,0.405504]
[1763563128150,0.90699264,3050.7,3048.3,0.6524]
[1763563128350,0.405504,3050.5,3048.3,0.6524]
[1763563128661,0.405504,3050.5,3048.4,0.4671]
[1763563129294,0.70838476,3050.6,3048.4,0.4671]
[1763563129793,0.405504,3050.5,3048.5,6.56060356]
[1763563129995,0.405504,3050.5,3048.4,0.4671]
[1763563130796,0.405504,3050.5,3048.4,3.74750334]
[1763563131120,0.90699264,3050.1,3048.4,0.4671]
[1763563131261,1.31249664,3049.5,3048.4,0.4671]
[1763563131762,0.90699264,3050.1,3048.4,0.4671]
[1763563131969,0.4644,3050.6,3048.4,3.74742074]
[1763563132160,5.71245499,3050.9,3048.5,0.405504]
[1763563132365,6.28370049,3050.9,3048.6,0.74333341]
[1763563132566,6.28370049,3050.9,3048.7,0.405504]
[1763563132809,5.71245499,3051.6,3048.8,0.405504]
[1763563133014,0.03282732,3051.3,3048.8,0.405504]
[1763563133196,0.90699264,3050.9,3048.9,0.4671]
[1763563133518,0.405504,3050.7,3048.9,0.4671]
[1763563133729,0.4644,3051.3,3048.9,0.4671]
[1763563133730,0.90699264,3050.3,3048.9,0.4671]
[1763563133889,0.1974,3051.4,3048.9,0.4671]
[1763563133890,0.405504,3050.8,3048.9,0.4671]
[1763563134095,5.71245499,3049.8,3048.1,0.4671]
[1763563134406,0.405504,3049.6,3047.6,0.4671]
[1763563134573,1.31249664,3049.4,3048.5,0.001]
[1763563134778,0.405504,3049.9,3048.5,0.001]
[1763563135011,0.90699264,3050.0,3048.5,0.001]
[1763563135012,0.03282732,3049.8,3048.5,0.001]
[1763563135173,0.90699264,3050.0,3048.5,0.001]
[1763563135373,6.55522778,3051.0,3048.5,0.001]
[1763563135374,1.31249664,3049.4,3048.5,0.001]
[1763563136320,0.405504,3049.2,3048.5,0.001]
[1763563136679,0.405504,3049.0,3048.5,0.001]
[1763563137095,0.405504,3048.8,3048.5,0.001]
[1763563137307,1.31249664,3048.8,3048.5,0.001]
[1763563137508,0.405504,3048.6,3048.5,0.001]
[1763563138098,0.869904,3048.6,3048.5,0.001]
[1763563138808,1.77609664,3048.6,3048.5,0.001]
[1763563139013,1.31169664,3048.6,3048.5,0.001]
[1763563139180,0.90699264,3049.2,3048.5,0.001]
[1763563139506,0.70838476,3049.1,3048.5,0.001]
[1763563139808,0.90699264,3048.6,3048.5,0.001]
[1763563140285,0.90699264,3049.2,3048.5,0.001]
[1763563140486,5.71245499,3049.3,3048.5,0.001]
[1763563140798,0.90699264,3048.6,3048.5,0.001]
[1763563141002,0.90699264,3049.2,3048.5,0.001]
[1763563141200,5.71245499,3048.7,3048.5,0.001]
[1763563141510,1.34532396,3048.6,3048.5,0.001]
[1763563141676,1.80972396,3048.6,3048.5,0.001]
[1763563141883,0.405504,3048.3,3048.1,0.001]
[1763563142301,0.869904,3048.2,3048.1,0.001]
[1763563142613,0.405504,3047.8,3045.0,0.4671]
[1763563142783,0.405504,3046.3,3045.0,0.4671]
[1763563142983,0.405504,3046.3,3044.5,0.001]
[1763563143212,0.869904,3046.3,3044.5,0.001]
[1763563143525,0.6618,3046.9,3045.0,0.4671]
[1763563143731,1.31249664,3046.2,3045.0,0.4671]
[1763563143879,1.31249664,3045.6,3044.5,0.001]
[1763563144080,0.90699264,3045.6,3044.5,0.001]
[1763563144279,0.4644,3046.7,3044.5,0.001]
[1763563144280,0.405504,3047.2,3045.0,0.4671]
[1763563144483,1.31249664,3046.8,3045.0,0.4671]
[1763563144701,1.31249664,3046.2,3045.0,0.4671]
[1763563144917,2.0149918,3046.2,3044.5,0.001]
[1763563145289,2.0149918,3046.2,3044.5,0.03384611]
[1763563145514,2.0149918,3046.2,3044.5,0.001]
[1763563145695,1.31249664,3045.6,3044.5,0.001]
[1763563146394,5.71245499,3046.0,3044.5,0.001]
[1763563146594,5.71245499,3047.0,3045.0,0.4671]
[1763563146795,0.90699264,3046.9,3045.0,0.4671]
[1763563146993,0.1944,3047.9,3045.1,0.405504]